[Event "Late-Titled-Tuesday-Blitz-February-06-2024"]
[Site "Chess.com"]
[Date "2024.02.06"]
[Round "8"]
[White "TheMagician"]
[Black "LUISMIGUELOV"]
[Result "1-0"]
[WhiteElo "2164"]
[BlackElo "2201"]
[TimeControl "180+1"]
[EndTime "15:28:43 PST"]
[Termination "TheMagician won by resignation"]

1. c4 {[%clk 0:02:59.3]} 1... e6 {[%clk 0:01:44.8]} 2. Nc3 {[%clk 0:02:58.2]}
2... Be7 {[%clk 0:01:45]} 3. d4 {[%clk 0:02:57.9]} 3... Nf6 {[%clk 0:01:45.4]}
4. e4 {[%clk 0:02:58.1]} 4... O-O {[%clk 0:01:45.4]} 5. e5 {[%clk 0:02:58.4]}
5... Ne8 {[%clk 0:01:45.3]} 6. f4 {[%clk 0:02:58.5]} 6... d6 {[%clk 0:01:45.7]}
7. Nf3 {[%clk 0:02:58.4]} 7... c5 {[%clk 0:01:46.2]} 8. exd6 {[%clk 0:02:57.8]}
8... Bxd6 {[%clk 0:01:42]} 9. dxc5 {[%clk 0:02:53]} 9... Be7 {[%clk 0:01:36.9]}
10. Qxd8 {[%clk 0:02:52.2]} 10... Bxd8 {[%clk 0:01:36.9]} 11. Be3 {[%clk
0:02:50]} 11... Nf6 {[%clk 0:01:35.6]} 12. O-O-O {[%clk 0:02:45.8]} 12... Nbd7
{[%clk 0:01:35.2]} 13. h3 {[%clk 0:02:35]} 13... Be7 {[%clk 0:01:35.4]} 14. c6
{[%clk 0:02:21.7]} 14... bxc6 {[%clk 0:01:34.6]} 15. g4 {[%clk 0:02:21.6]} 15...
h6 {[%clk 0:01:24]} 16. Bg2 {[%clk 0:02:21.3]} 16... Rb8 {[%clk 0:01:21.7]} 17.
Bxa7 {[%clk 0:02:19.4]} 17... Ra8 {[%clk 0:01:20.3]} 18. Be3 {[%clk 0:02:10.8]}
18... Bc5 {[%clk 0:01:19.9]} 19. Bxc5 {[%clk 0:02:10.4]} 19... Nxc5 {[%clk
0:01:19.7]} 20. Ne5 {[%clk 0:02:09]} 20... Bb7 {[%clk 0:01:14.8]} 21. Bxc6
{[%clk 0:02:06.2]} 21... Bxc6 {[%clk 0:01:13.8]} 22. Nxc6 {[%clk 0:02:06.4]}
22... Ra6 {[%clk 0:01:01.3]} 23. Nb4 {[%clk 0:02:03.4]} 23... Raa8 {[%clk
0:00:51.5]} 24. Rhe1 {[%clk 0:02:01.7]} 24... Rfb8 {[%clk 0:00:47.4]} 25. Nc6
{[%clk 0:02:00.2]} 25... Rb7 {[%clk 0:00:46.8]} 26. b3 {[%clk 0:01:53.9]} 26...
Rc7 {[%clk 0:00:42.2]} 27. Ne5 {[%clk 0:01:50.8]} 27... Nfd7 {[%clk 0:00:30.3]}
28. Nxd7 {[%clk 0:01:49.7]} 28... Nxd7 {[%clk 0:00:30.1]} 29. Kc2 {[%clk
0:01:48.8]} 29... Nc5 {[%clk 0:00:27.4]} 30. Rd4 {[%clk 0:01:41.7]} 30... Na6
{[%clk 0:00:27.2]} 31. Red1 {[%clk 0:01:40.4]} 31... Nb4+ {[%clk 0:00:27.6]} 32.
Kb2 {[%clk 0:01:40.6]} 32... Nc6 {[%clk 0:00:27.1]} 33. Rd7 {[%clk 0:01:39.9]}
33... Rxd7 {[%clk 0:00:26.5]} 34. Rxd7 {[%clk 0:01:39.8]} 34... Kf8 {[%clk
0:00:26.9]} 35. Nb5 {[%clk 0:01:35.1]} 35... Nb4 {[%clk 0:00:25.7]} 36. a3
{[%clk 0:01:34.5]} 36... Na6 {[%clk 0:00:23.6]} 37. Nc7 {[%clk 0:01:31.2]} 37...
Nxc7 {[%clk 0:00:21.3]} 38. Rxc7 {[%clk 0:01:31.1]} 38... Rd8 {[%clk 0:00:21.8]}
39. Kc3 {[%clk 0:01:31.4]} 39... Rd1 {[%clk 0:00:21.3]} 40. a4 {[%clk
0:01:31.6]} 40... Rh1 {[%clk 0:00:20.8]} 41. a5 {[%clk 0:01:27.7]} 41... Rxh3+
{[%clk 0:00:21.2]} 42. Kb4 {[%clk 0:01:28]} 42... Rh1 {[%clk 0:00:20.6]} 43. a6
{[%clk 0:01:28.4]} 43... Ra1 {[%clk 0:00:20.5]} 44. a7 {[%clk 0:01:28]} 44... g5
{[%clk 0:00:21]} 45. fxg5 {[%clk 0:01:27.2]} 45... hxg5 {[%clk 0:00:20.1]} 46.
Kb5 {[%clk 0:01:26.2]} 46... Kg7 {[%clk 0:00:19.2]} 47. Kb6 {[%clk 0:01:24.6]}
47... Kg6 {[%clk 0:00:19.1]} 48. b4 {[%clk 0:01:24.8]} 48... f5 {[%clk 0:00:19]}
49. Rc8 {[%clk 0:01:20.6]} 49... fxg4 {[%clk 0:00:18]} 50. a8=Q {[%clk
0:01:20.3]} 50... Rxa8 {[%clk 0:00:17]} 51. Rxa8 {[%clk 0:01:20.5]} 51... g3
{[%clk 0:00:17.5]} 52. Ra3 {[%clk 0:01:19.7]} 52... g2 {[%clk 0:00:16.5]} 53.
Rg3 {[%clk 0:01:19.6]} 53... e5 {[%clk 0:00:17]} 54. Rxg2 {[%clk 0:01:19.9]}
54... e4 {[%clk 0:00:17.1]} 55. c5 {[%clk 0:01:20.4]} 55... e3 {[%clk
0:00:15.5]} 56. c6 {[%clk 0:01:20.9]} 56... Kh5 {[%clk 0:00:12]} 57. c7 {[%clk
0:01:20.9]} 57... g4 {[%clk 0:00:12.3]} 58. c8=Q {[%clk 0:01:21]} 1-0

[Event "Late-Titled-Tuesday-Blitz-February-06-2024"]
[Site "Chess.com"]
[Date "2024.02.06"]
[Round "8"]
[White "iwanyu"]
[Black "Angry_Twin"]
[Result "1-0"]
[WhiteElo "2843"]
[BlackElo "3068"]
[TimeControl "180+1"]
[EndTime "15:28:44 PST"]
[Termination "iwanyu won by resignation"]

1. d4 {[%clk 0:02:32.1]} 1... Nf6 {[%clk 0:02:59.9]} 2. c4 {[%clk 0:02:32.2]}
2... e6 {[%clk 0:03:00]} 3. Nf3 {[%clk 0:02:32.8]} 3... d5 {[%clk 0:02:56.5]} 4.
g3 {[%clk 0:02:32.2]} 4... Bb4+ {[%clk 0:02:55.1]} 5. Nc3 {[%clk 0:02:32.1]}
5... O-O {[%clk 0:02:53.6]} 6. Bg2 {[%clk 0:02:32.5]} 6... dxc4 {[%clk
0:02:53.7]} 7. O-O {[%clk 0:02:32.8]} 7... Nc6 {[%clk 0:02:53.4]} 8. a3 {[%clk
0:02:33.3]} 8... Bd6 {[%clk 0:02:51.4]} 9. Bg5 {[%clk 0:02:29.2]} 9... h6 {[%clk
0:02:47.4]} 10. Bxf6 {[%clk 0:02:25.3]} 10... Qxf6 {[%clk 0:02:48.3]} 11. Ne4
{[%clk 0:02:18.2]} 11... Qe7 {[%clk 0:02:30.6]} 12. Qc2 {[%clk 0:02:10.9]} 12...
e5 {[%clk 0:02:08.4]} 13. d5 {[%clk 0:02:06.5]} 13... Nd8 {[%clk 0:02:08]} 14.
Qxc4 {[%clk 0:02:04.2]} 14... f5 {[%clk 0:02:06.9]} 15. Nxd6 {[%clk 0:02:00.9]}
15... cxd6 {[%clk 0:02:07.3]} 16. Rac1 {[%clk 0:01:59.8]} 16... Nf7 {[%clk
0:02:03.9]} 17. Nh4 {[%clk 0:01:53.7]} 17... Qf6 {[%clk 0:02:00.8]} 18. Qc7
{[%clk 0:01:48.3]} 18... e4 {[%clk 0:02:00.2]} 19. Bh1 {[%clk 0:01:33.7]} 19...
g5 {[%clk 0:01:57.5]} 20. Ng2 {[%clk 0:01:33.6]} 20... f4 {[%clk 0:01:55]} 21.
Rc4 {[%clk 0:01:21.3]} 21... Re8 {[%clk 0:01:54.6]} 22. gxf4 {[%clk 0:01:16.1]}
22... gxf4 {[%clk 0:01:52.1]} 23. f3 {[%clk 0:01:16.4]} 23... Bh3 {[%clk
0:01:38.9]} 24. Rxe4 {[%clk 0:01:12.6]} 24... Bxg2 {[%clk 0:01:01.4]} 25. Bxg2
{[%clk 0:01:10.4]} 25... Rxe4 {[%clk 0:01:01.2]} 26. fxe4 {[%clk 0:01:10.4]}
26... Ne5 {[%clk 0:01:01.1]} 27. Bh3 {[%clk 0:01:07.1]} 27... Kh8 {[%clk
0:00:44.1]} 28. Be6 {[%clk 0:01:06.9]} 28... f3 {[%clk 0:00:33.9]} 29. exf3
{[%clk 0:01:03.6]} 29... Nxf3+ {[%clk 0:00:30.4]} 30. Kh1 {[%clk 0:01:03.9]}
30... Rd8 {[%clk 0:00:14.1]} 31. Bg4 {[%clk 0:00:50.4]} 31... Rg8 {[%clk
0:00:14.2]} 32. Bxf3 {[%clk 0:00:47.1]} 32... Qf4 {[%clk 0:00:08.8]} 33. Bg2
{[%clk 0:00:40.6]} 33... Qg5 {[%clk 0:00:05]} 34. Bh3 {[%clk 0:00:38.6]} 34...
Rg7 {[%clk 0:00:02.7]} 35. Rf8+ {[%clk 0:00:34.1]} 35... Kh7 {[%clk 0:00:01.9]}
36. Bf5+ {[%clk 0:00:33.5]} 36... Qxf5 {[%clk 0:00:02.4]} 37. Qxg7+ {[%clk
0:00:33.1]} 37... Kxg7 {[%clk 0:00:03.3]} 38. Rxf5 {[%clk 0:00:33.2]} 1-0

[Event "Late-Titled-Tuesday-Blitz-February-06-2024"]
[Site "Chess.com"]
[Date "2024.02.06"]
[Round "8"]
[White "GMKrikor"]
[Black "GMBenjaminBok"]
[Result "1-0"]
[WhiteElo "2858"]
[BlackElo "2994"]
[TimeControl "180+1"]
[EndTime "15:28:45 PST"]
[Termination "GMKrikor won by resignation"]

1. Nf3 {[%clk 0:03:00.9]} 1... d5 {[%clk 0:02:57.9]} 2. c4 {[%clk 0:03:00.6]}
2... e6 {[%clk 0:02:57.7]} 3. d4 {[%clk 0:02:58.6]} 3... Nf6 {[%clk 0:02:57.7]}
4. cxd5 {[%clk 0:02:59.2]} 4... exd5 {[%clk 0:02:57.8]} 5. Nc3 {[%clk
0:02:59.7]} 5... c6 {[%clk 0:02:57.2]} 6. Bf4 {[%clk 0:03:00]} 6... Bd6 {[%clk
0:02:54.6]} 7. Bxd6 {[%clk 0:03:00.1]} 7... Qxd6 {[%clk 0:02:55.5]} 8. e3 {[%clk
0:03:00.9]} 8... Bg4 {[%clk 0:02:49.3]} 9. Qb3 {[%clk 0:02:58.7]} 9... Qe7
{[%clk 0:02:43.4]} 10. Ne5 {[%clk 0:02:57.6]} 10... Bf5 {[%clk 0:02:40]} 11. Be2
{[%clk 0:02:50.5]} 11... O-O {[%clk 0:02:39.1]} 12. g4 {[%clk 0:02:37]} 12...
Be6 {[%clk 0:02:36.4]} 13. g5 {[%clk 0:02:31.6]} 13... Ne4 {[%clk 0:02:29.2]}
14. Nxe4 {[%clk 0:02:25.4]} 14... dxe4 {[%clk 0:02:30.1]} 15. Bc4 {[%clk
0:02:23]} 15... Bxc4 {[%clk 0:02:20]} 16. Qxc4 {[%clk 0:02:23.9]} 16... Qxg5
{[%clk 0:01:53.8]} 17. O-O-O {[%clk 0:02:23.7]} 17... Qf5 {[%clk 0:01:53.4]} 18.
Qc2 {[%clk 0:01:52.5]} 18... Na6 {[%clk 0:01:45.1]} 19. f3 {[%clk 0:01:28.4]}
19... Nb4 {[%clk 0:01:28.8]} 20. Qxe4 {[%clk 0:01:22.9]} 20... Nxa2+ {[%clk
0:01:26.9]} 21. Kc2 {[%clk 0:01:19.3]} 21... Qe6 {[%clk 0:01:14.6]} 22. Rhg1
{[%clk 0:00:52.5]} 22... Nb4+ {[%clk 0:01:08.6]} 23. Kd2 {[%clk 0:00:47.2]}
23... Rae8 {[%clk 0:00:49.7]} 24. Qf4 {[%clk 0:00:32.1]} 24... g6 {[%clk
0:00:34.3]} 25. Ng4 {[%clk 0:00:30.9]} 25... Nd5 {[%clk 0:00:27]} 26. Qg5 {[%clk
0:00:28.5]} 26... Qe7 {[%clk 0:00:19.6]} 27. Qh6 {[%clk 0:00:23.3]} 27... Qb4+
{[%clk 0:00:13.3]} 28. Kc1 {[%clk 0:00:23.6]} 28... Qe7 {[%clk 0:00:06.1]} 29.
e4 {[%clk 0:00:14.6]} 29... Nf6 {[%clk 0:00:05.1]} 30. Ne3 {[%clk 0:00:14.6]}
30... Kh8 {[%clk 0:00:03]} 31. Nf5 {[%clk 0:00:14.6]} 31... Ng4 {[%clk 0:00:02]}
1-0

[Event "Late-Titled-Tuesday-Blitz-February-06-2024"]
[Site "Chess.com"]
[Date "2024.02.06"]
[Round "8"]
[White "WilsonPalencia21"]
[Black "Horokoskii"]
[Result "1-0"]
[WhiteElo "2591"]
[BlackElo "2173"]
[TimeControl "180+1"]
[EndTime "15:28:49 PST"]
[Termination "WilsonPalencia21 won by resignation"]

1. d4 {[%clk 0:03:00.9]} 1... Nf6 {[%clk 0:02:57.8]} 2. c4 {[%clk 0:03:00.7]}
2... g6 {[%clk 0:02:55.7]} 3. Nf3 {[%clk 0:03:00.7]} 3... Bg7 {[%clk 0:02:54.7]}
4. Nc3 {[%clk 0:03:00.9]} 4... O-O {[%clk 0:02:52.9]} 5. e4 {[%clk 0:03:01.1]}
5... d6 {[%clk 0:02:53.4]} 6. Be2 {[%clk 0:03:01.2]} 6... c5 {[%clk 0:02:51.2]}
7. d5 {[%clk 0:03:01]} 7... e6 {[%clk 0:02:40.5]} 8. O-O {[%clk 0:02:59.7]} 8...
exd5 {[%clk 0:02:40.2]} 9. exd5 {[%clk 0:03:00.6]} 9... Re8 {[%clk 0:02:37.1]}
10. h3 {[%clk 0:03:00.5]} 10... Nbd7 {[%clk 0:02:36.4]} 11. Bf4 {[%clk 0:03:00]}
11... Qe7 {[%clk 0:02:27.5]} 12. Re1 {[%clk 0:02:59.1]} 12... a6 {[%clk
0:02:12.9]} 13. Bf1 {[%clk 0:02:55.2]} 13... Qf8 {[%clk 0:02:12.9]} 14. Qd2
{[%clk 0:02:45.3]} 14... Nb6 {[%clk 0:01:56.5]} 15. a4 {[%clk 0:02:37.8]} 15...
Rb8 {[%clk 0:01:43.2]} 16. Rxe8 {[%clk 0:01:49.8]} 16... Nxe8 {[%clk 0:01:41.5]}
17. Re1 {[%clk 0:01:46.3]} 17... Bd7 {[%clk 0:01:36.1]} 18. a5 {[%clk
0:01:42.7]} 18... Na8 {[%clk 0:01:36.3]} 19. Ne4 {[%clk 0:01:38.1]} 19... Bf5
{[%clk 0:01:31.8]} 20. g4 {[%clk 0:01:27.5]} 20... Bxe4 {[%clk 0:01:31.3]} 21.
Rxe4 {[%clk 0:01:28.4]} 21... Nf6 {[%clk 0:01:28]} 22. Re3 {[%clk 0:01:26.7]}
22... Nc7 {[%clk 0:01:26.5]} 23. b4 {[%clk 0:01:24.3]} 23... Nd7 {[%clk
0:00:58.3]} 24. Kg2 {[%clk 0:01:22.2]} 24... cxb4 {[%clk 0:00:54.6]} 25. Qxb4
{[%clk 0:01:21.8]} 25... Nc5 {[%clk 0:00:54.7]} 26. Qb6 {[%clk 0:01:20]} 26...
Ne8 {[%clk 0:00:49.7]} 27. Rxe8 {[%clk 0:01:05.1]} 27... Qxe8 {[%clk 0:00:44.6]}
28. Bxd6 {[%clk 0:01:04.6]} 28... Nd7 {[%clk 0:00:41.8]} 29. Qa7 {[%clk
0:00:52.2]} 29... Rc8 {[%clk 0:00:36.2]} 30. Qxb7 {[%clk 0:00:51.9]} 30... Rd8
{[%clk 0:00:22.9]} 31. Qxa6 {[%clk 0:00:48.5]} 31... Ne5 {[%clk 0:00:20.7]} 32.
Bxe5 {[%clk 0:00:43.5]} 32... Bxe5 {[%clk 0:00:20.8]} 33. Qb5 {[%clk 0:00:35.1]}
33... Qxb5 {[%clk 0:00:17]} 34. cxb5 {[%clk 0:00:35]} 34... Rxd5 {[%clk
0:00:17.5]} 35. Nxe5 {[%clk 0:00:31.6]} 35... Rxe5 {[%clk 0:00:17.2]} 36. a6
{[%clk 0:00:31.9]} 36... Kf8 {[%clk 0:00:14.2]} 37. a7 {[%clk 0:00:28.6]} 37...
Re8 {[%clk 0:00:13.9]} 38. b6 {[%clk 0:00:28.8]} 38... Ke7 {[%clk 0:00:14.5]}
39. Bb5 {[%clk 0:00:28.5]} 39... Rc8 {[%clk 0:00:13.3]} 40. Bc6 {[%clk
0:00:28.3]} 40... Rxc6 {[%clk 0:00:12.9]} 41. a8=Q {[%clk 0:00:27.5]} 41... Rxb6
{[%clk 0:00:13.2]} 42. Qa7+ {[%clk 0:00:27.8]} 1-0

[Event "Late-Titled-Tuesday-Blitz-February-06-2024"]
[Site "Chess.com"]
[Date "2024.02.06"]
[Round "8"]
[White "Semetey"]
[Black "Oleksandr_Bortnyk"]
[Result "0-1"]
[WhiteElo "2643"]
[BlackElo "3065"]
[TimeControl "180+1"]
[EndTime "15:28:50 PST"]
[Termination "Oleksandr_Bortnyk won by checkmate"]

1. e4 {[%clk 0:02:45.7]} 1... Nf6 {[%clk 0:02:59.9]} 2. Nc3 {[%clk 0:02:44.1]}
2... d5 {[%clk 0:03:00.1]} 3. e5 {[%clk 0:02:43.3]} 3... Nfd7 {[%clk 0:03:00.5]}
4. f4 {[%clk 0:02:39.4]} 4... d4 {[%clk 0:03:00.8]} 5. Ne4 {[%clk 0:02:38.4]}
5... f5 {[%clk 0:03:00.5]} 6. Ng5 {[%clk 0:02:36.3]} 6... Nb6 {[%clk 0:03:00.6]}
7. c3 {[%clk 0:02:25.6]} 7... c5 {[%clk 0:02:59]} 8. cxd4 {[%clk 0:02:16.6]}
8... cxd4 {[%clk 0:02:59.9]} 9. Bd3 {[%clk 0:02:08.4]} 9... Nc6 {[%clk
0:02:54.4]} 10. a3 {[%clk 0:02:07.2]} 10... g6 {[%clk 0:02:52.1]} 11. Qf3 {[%clk
0:01:46.3]} 11... h6 {[%clk 0:02:49.9]} 12. Qh3 {[%clk 0:01:45.9]} 12... Nd5
{[%clk 0:02:35.3]} 13. Ne2 {[%clk 0:01:44.6]} 13... Bg7 {[%clk 0:02:12.3]} 14.
Nf3 {[%clk 0:01:44.3]} 14... Be6 {[%clk 0:02:12.8]} 15. b4 {[%clk 0:01:39.3]}
15... a6 {[%clk 0:02:10.8]} 16. Bb2 {[%clk 0:01:39.3]} 16... Qd7 {[%clk
0:02:00.3]} 17. Qg3 {[%clk 0:01:38]} 17... Bf7 {[%clk 0:01:47.4]} 18. b5 {[%clk
0:01:27.1]} 18... axb5 {[%clk 0:01:44.1]} 19. Bxb5 {[%clk 0:01:28]} 19... d3
{[%clk 0:01:43.4]} 20. Ned4 {[%clk 0:01:27.3]} 20... O-O {[%clk 0:01:35.7]} 21.
O-O {[%clk 0:01:24]} 21... Nc7 {[%clk 0:01:17.5]} 22. Bxd3 {[%clk 0:01:19.7]}
22... Rfd8 {[%clk 0:01:11.7]} 23. Bxf5 {[%clk 0:01:02]} 23... Nxd4 {[%clk
0:00:53.2]} 24. Bxd4 {[%clk 0:00:55.6]} 24... Qxf5 {[%clk 0:00:49.9]} 25. Bc3
{[%clk 0:00:45]} 25... Rd3 {[%clk 0:00:47.8]} 26. Nh4 {[%clk 0:00:40.9]} 26...
Qe4 {[%clk 0:00:18.9]} 27. Nf3 {[%clk 0:00:40.3]} 27... Nd5 {[%clk 0:00:16.2]}
28. Rfe1 {[%clk 0:00:19.6]} 28... Qxf4 {[%clk 0:00:16.3]} 29. e6 {[%clk
0:00:16.5]} 29... Be8 {[%clk 0:00:16.5]} 30. Bxg7 {[%clk 0:00:15.2]} 30... Qxg3
{[%clk 0:00:16.2]} 31. hxg3 {[%clk 0:00:15.5]} 31... Kxg7 {[%clk 0:00:17]} 32.
Rab1 {[%clk 0:00:15]} 32... Bc6 {[%clk 0:00:16.4]} 33. Ne5 {[%clk 0:00:14.4]}
33... Rxg3 {[%clk 0:00:16.4]} 34. Nxc6 {[%clk 0:00:14.2]} 34... bxc6 {[%clk
0:00:17.3]} 35. Rbc1 {[%clk 0:00:13.7]} 35... Nf4 {[%clk 0:00:13.9]} 36. Rxc6
{[%clk 0:00:12.8]} 36... Rxg2+ {[%clk 0:00:14.1]} 37. Kh1 {[%clk 0:00:13.3]}
37... Rxa3 {[%clk 0:00:13.1]} 38. Rc7 {[%clk 0:00:13.7]} 38... Rh3# {[%clk
0:00:13.2]} 0-1

[Event "Late-Titled-Tuesday-Blitz-February-06-2024"]
[Site "Chess.com"]
[Date "2024.02.06"]
[Round "8"]
[White "jsdbv18"]
[Black "malakismayil"]
[Result "1-0"]
[WhiteElo "2625"]
[BlackElo "2479"]
[TimeControl "180+1"]
[EndTime "15:28:51 PST"]
[Termination "jsdbv18 won on time"]

1. Nf3 {[%clk 0:03:00.9]} 1... d5 {[%clk 0:02:58.4]} 2. g3 {[%clk 0:03:00.2]}
2... Nf6 {[%clk 0:02:58.7]} 3. Bg2 {[%clk 0:03:00.9]} 3... e6 {[%clk 0:02:59.6]}
4. c4 {[%clk 0:03:01.4]} 4... Be7 {[%clk 0:03:00.5]} 5. d4 {[%clk 0:02:59.5]}
5... O-O {[%clk 0:03:00.7]} 6. O-O {[%clk 0:03:00.2]} 6... dxc4 {[%clk 0:03:01]}
7. Qc2 {[%clk 0:03:00.2]} 7... b5 {[%clk 0:02:56]} 8. a4 {[%clk 0:02:59.7]} 8...
c6 {[%clk 0:02:56.2]} 9. b3 {[%clk 0:02:55.2]} 9... cxb3 {[%clk 0:02:43.7]} 10.
Qxb3 {[%clk 0:02:56.1]} 10... b4 {[%clk 0:02:41]} 11. Ne5 {[%clk 0:02:49.9]}
11... Ba6 {[%clk 0:02:33.6]} 12. Qc2 {[%clk 0:02:42.7]} 12... Nd5 {[%clk
0:02:29.8]} 13. Bb2 {[%clk 0:02:38.8]} 13... f6 {[%clk 0:02:26]} 14. Nxc6 {[%clk
0:02:38.1]} 14... Nxc6 {[%clk 0:01:27.3]} 15. Qxc6 {[%clk 0:02:39]} 15... Qd6
{[%clk 0:01:28]} 16. Qxd6 {[%clk 0:02:04.1]} 16... Bxd6 {[%clk 0:01:28.9]} 17.
Rc1 {[%clk 0:02:01.1]} 17... Rac8 {[%clk 0:01:27.3]} 18. e4 {[%clk 0:01:58.8]}
18... Nb6 {[%clk 0:01:23.2]} 19. Bh3 {[%clk 0:01:48.1]} 19... Kf7 {[%clk
0:01:07.7]} 20. Rxc8 {[%clk 0:01:38.6]} 20... Rxc8 {[%clk 0:00:46.1]} 21. d5
{[%clk 0:01:35.7]} 21... Rc2 {[%clk 0:00:45.8]} 22. Bxe6+ {[%clk 0:01:33.8]}
22... Ke7 {[%clk 0:00:46.1]} 23. Bd4 {[%clk 0:01:33.8]} 23... Bd3 {[%clk
0:00:33.1]} 24. a5 {[%clk 0:01:28.4]} 24... Nc4 {[%clk 0:00:27.7]} 25. Kg2
{[%clk 0:00:55.2]} 25... Bxe4+ {[%clk 0:00:19]} 26. Kh3 {[%clk 0:00:55.5]} 26...
Rc1 {[%clk 0:00:19.6]} 27. Nd2 {[%clk 0:00:48.8]} 27... Rxa1 {[%clk 0:00:19.4]}
28. Nxc4 {[%clk 0:00:47.6]} 28... a6 {[%clk 0:00:10.9]} 29. Nb6 {[%clk
0:00:39.2]} 29... Rd1 {[%clk 0:00:04.3]} 30. Be3 {[%clk 0:00:26]} 30... Bc7
{[%clk 0:00:01.8]} 31. Nc8+ {[%clk 0:00:20.3]} 31... Kd8 {[%clk 0:00:02.2]} 32.
d6 {[%clk 0:00:16.7]} 32... Bxd6 {[%clk 0:00:01.8]} 33. Nxd6 {[%clk 0:00:16.7]}
1-0

[Event "Late-Titled-Tuesday-Blitz-February-06-2024"]
[Site "Chess.com"]
[Date "2024.02.06"]
[Round "8"]
[White "RantomOpening"]
[Black "delqate"]
[Result "0-1"]
[WhiteElo "2494"]
[BlackElo "2369"]
[TimeControl "180+1"]
[EndTime "15:28:56 PST"]
[Termination "delqate won by checkmate"]

1. d4 {[%clk 0:03:00]} 1... d5 {[%clk 0:03:00.9]} 2. Bg5 {[%clk 0:02:59.6]} 2...
h6 {[%clk 0:03:00.1]} 3. Bf4 {[%clk 0:02:59.6]} 3... Nf6 {[%clk 0:02:58]} 4. Nf3
{[%clk 0:02:59.8]} 4... c5 {[%clk 0:02:52.5]} 5. e3 {[%clk 0:02:59.8]} 5... Nc6
{[%clk 0:02:50.9]} 6. c3 {[%clk 0:02:59.4]} 6... Bf5 {[%clk 0:02:50.6]} 7. Bb5
{[%clk 0:02:56.4]} 7... Qb6 {[%clk 0:02:45.8]} 8. Qa4 {[%clk 0:02:49.8]} 8...
Nd7 {[%clk 0:02:30]} 9. Nbd2 {[%clk 0:02:47.7]} 9... e6 {[%clk 0:02:29.2]} 10.
O-O {[%clk 0:02:47.1]} 10... Be7 {[%clk 0:02:26.1]} 11. Bxc6 {[%clk 0:02:35.4]}
11... bxc6 {[%clk 0:02:22.3]} 12. b3 {[%clk 0:02:21.5]} 12... O-O {[%clk
0:02:19]} 13. Qa3 {[%clk 0:02:19.5]} 13... Rfe8 {[%clk 0:02:13.9]} 14. Qb2
{[%clk 0:02:18.8]} 14... a5 {[%clk 0:02:13.4]} 15. c4 {[%clk 0:02:16.7]} 15...
a4 {[%clk 0:02:11.9]} 16. cxd5 {[%clk 0:02:13.6]} 16... cxd5 {[%clk 0:02:11.6]}
17. dxc5 {[%clk 0:02:09.5]} 17... Nxc5 {[%clk 0:02:08.7]} 18. Be5 {[%clk
0:02:03.7]} 18... Nd3 {[%clk 0:02:00.6]} 19. Qd4 {[%clk 0:02:02.6]} 19... Bc5
{[%clk 0:01:56.5]} 20. Qh4 {[%clk 0:02:01.1]} 20... Bxe3 {[%clk 0:01:30.5]} 21.
Bg3 {[%clk 0:01:53.2]} 21... Bc5 {[%clk 0:01:06.8]} 22. bxa4 {[%clk 0:01:52.1]}
22... Be7 {[%clk 0:01:01.6]} 23. Qd4 {[%clk 0:01:47.2]} 23... Bc5 {[%clk
0:01:00.7]} 24. Qh4 {[%clk 0:01:46.1]} 24... Qa5 {[%clk 0:00:59.7]} 25. Nb3
{[%clk 0:01:45.1]} 25... Qxa4 {[%clk 0:00:58.3]} 26. Qh5 {[%clk 0:01:35]} 26...
Bb6 {[%clk 0:00:49.7]} 27. Ne5 {[%clk 0:01:26.4]} 27... Nxe5 {[%clk 0:00:44.7]}
28. Bxe5 {[%clk 0:01:27.3]} 28... Bg6 {[%clk 0:00:38.5]} 29. Qf3 {[%clk
0:01:24.8]} 29... Rec8 {[%clk 0:00:38.1]} 30. Qg3 {[%clk 0:01:24.1]} 30... Rc2
{[%clk 0:00:35.3]} 31. h4 {[%clk 0:01:19.7]} 31... h5 {[%clk 0:00:33.9]} 32. a3
{[%clk 0:01:14.2]} 32... Rac8 {[%clk 0:00:28.8]} 33. Nc1 {[%clk 0:00:37.6]}
33... R8c4 {[%clk 0:00:23.9]} 34. Qb3 {[%clk 0:00:31.6]} 34... Bxf2+ {[%clk
0:00:15.2]} 35. Kh1 {[%clk 0:00:27.2]} 35... Rxh4+ {[%clk 0:00:14.8]} 36. Bh2
{[%clk 0:00:27.4]} 36... Qxb3 {[%clk 0:00:12.1]} 37. Nxb3 {[%clk 0:00:27.1]}
37... Bg3 {[%clk 0:00:12.2]} 38. a4 {[%clk 0:00:18]} 38... Rxh2+ {[%clk
0:00:11.9]} 39. Kg1 {[%clk 0:00:17.3]} 39... Rcxg2# {[%clk 0:00:12.8]} 0-1

[Event "Late-Titled-Tuesday-Blitz-February-06-2024"]
[Site "Chess.com"]
[Date "2024.02.06"]
[Round "8"]
[White "jinxy2009"]
[Black "Laico"]
[Result "0-1"]
[WhiteElo "2228"]
[BlackElo "2364"]
[TimeControl "180+1"]
[EndTime "15:28:59 PST"]
[Termination "Laico won by resignation"]

1. e4 {[%clk 0:03:00.9]} 1... e6 {[%clk 0:02:54.1]} 2. d4 {[%clk 0:02:58.2]}
2... d5 {[%clk 0:02:38]} 3. e5 {[%clk 0:02:55.8]} 3... c5 {[%clk 0:02:25.1]} 4.
c3 {[%clk 0:02:54.1]} 4... Nc6 {[%clk 0:01:51.8]} 5. Nf3 {[%clk 0:02:46.4]} 5...
Bd7 {[%clk 0:01:36.4]} 6. Be2 {[%clk 0:02:41.5]} 6... Nge7 {[%clk 0:01:18.4]} 7.
O-O {[%clk 0:02:33.8]} 7... Nf5 {[%clk 0:01:15.5]} 8. Na3 {[%clk 0:02:15]} 8...
cxd4 {[%clk 0:01:11.8]} 9. cxd4 {[%clk 0:02:15.9]} 9... Bxa3 {[%clk 0:01:10.8]}
10. bxa3 {[%clk 0:02:16]} 10... Qb6 {[%clk 0:01:10.2]} 11. Be3 {[%clk 0:02:14]}
11... Qa5 {[%clk 0:01:08.2]} 12. Qb3 {[%clk 0:02:07.1]} 12... Qc7 {[%clk
0:00:37.8]} 13. Rab1 {[%clk 0:01:58]} 13... Rb8 {[%clk 0:00:31.7]} 14. Rfc1
{[%clk 0:01:53.9]} 14... O-O {[%clk 0:00:31.2]} 15. h4 {[%clk 0:01:43.9]} 15...
Nxe3 {[%clk 0:00:28.5]} 16. fxe3 {[%clk 0:01:41.8]} 16... Qd8 {[%clk 0:00:24.1]}
17. Bd3 {[%clk 0:01:35.5]} 17... f6 {[%clk 0:00:22.4]} 18. Qd1 {[%clk
0:01:14.5]} 18... Be8 {[%clk 0:00:16.7]} 19. exf6 {[%clk 0:01:02.8]} 19... Qxf6
{[%clk 0:00:17.6]} 20. Qc2 {[%clk 0:00:43.8]} 20... Bh5 {[%clk 0:00:16.1]} 21.
Rf1 {[%clk 0:00:43.2]} 21... Qh6 {[%clk 0:00:15.1]} 22. Ng5 {[%clk 0:00:40.2]}
22... Bg6 {[%clk 0:00:14.9]} 23. Bxg6 {[%clk 0:00:39.1]} 23... hxg6 {[%clk
0:00:15.6]} 24. Nxe6 {[%clk 0:00:37.4]} 24... Rxf1+ {[%clk 0:00:14.6]} 25. Rxf1
{[%clk 0:00:37]} 25... Qxe3+ {[%clk 0:00:14.9]} 26. Kh1 {[%clk 0:00:31.6]} 26...
Qxe6 {[%clk 0:00:15.8]} 27. Qf2 {[%clk 0:00:24.5]} 27... Re8 {[%clk 0:00:10.3]}
28. Rb1 {[%clk 0:00:20.2]} 28... b6 {[%clk 0:00:07.7]} 29. Rc1 {[%clk
0:00:20.1]} 29... Ne7 {[%clk 0:00:07.7]} 30. Rc7 {[%clk 0:00:18.9]} 30... Nf5
{[%clk 0:00:07.4]} 31. Qf4 {[%clk 0:00:14.5]} 31... Qe1+ {[%clk 0:00:06.1]} 32.
Kh2 {[%clk 0:00:14.4]} 32... Qxh4+ {[%clk 0:00:05.9]} 33. Qxh4 {[%clk
0:00:14.3]} 33... Nxh4 {[%clk 0:00:06.7]} 34. Rxa7 {[%clk 0:00:14.5]} 34... Re2
{[%clk 0:00:03.9]} 35. Rd7 {[%clk 0:00:13.3]} 35... Nxg2 {[%clk 0:00:03.9]} 36.
Rxd5 {[%clk 0:00:12.8]} 36... Ne3+ {[%clk 0:00:03.7]} 0-1